bitfinex/quotes_BTCUSD_20230110
["timestamp","ask_amount","ask_price","bid_price","bid_amount"]
[1673350029219,0.08533085,17278.0,17277.0,1.76302032]
[1673350037399,0.08533085,17278.0,17277.0,2.20834862]
[1673350037663,0.08533085,17278.0,17277.0,2.56933262]
[1673350043248,0.08525512,17278.0,17277.0,2.56933262]
[1673350048420,0.08525512,17278.0,17277.0,2.12400432]
[1673350048936,0.08525512,17278.0,17277.0,1.76302032]
[1673350052963,0.08311542,17278.0,17277.0,1.76302032]
[1673350056273,1.41439531,17278.0,17277.0,1.76302032]
[1673350057795,0.2564447,17278.0,17277.0,1.76302032]
[1673350058747,0.08311542,17278.0,17277.0,1.76302032]
[1673350059251,1.41438569,17278.0,17277.0,1.76302032]
[1673350059506,0.08311542,17278.0,17277.0,1.76302032]
[1673350061260,0.08311542,17278.0,17277.0,1.93619316]
[1673350061762,0.08311542,17278.0,17277.0,1.76302032]
[1673350066577,0.2564447,17278.0,17277.0,1.76302032]
[1673350066833,1.41439162,17278.0,17277.0,1.76302032]
[1673350070021,1.41439162,17278.0,17277.0,0.04771081]
[1673350070284,1.31171408,17278.0,17277.0,0.04771081]
[1673350070538,3.07757131,17278.0,17277.0,0.04771081]
[1673350070790,3.00489005,17278.0,17277.0,0.04771081]
[1673350071053,3.17855566,17278.0,17277.0,0.04771081]
[1673350071313,3.00489043,17278.0,17277.0,0.04771081]
[1673350071562,2.64390643,17278.0,17277.0,0.04771081]
[1673350072590,3.00489043,17278.0,17277.0,0.04771081]
[1673350073106,2.64390643,17278.0,17277.0,0.04771081]
[1673350073358,2.64390643,17278.0,17277.0,0.04761714]
[1673350073616,3.00489043,17278.0,17277.0,0.04761714]
[1673350077214,3.1783237,17278.0,17277.0,0.04761714]
[1673350077978,2.83115545,17278.0,17277.0,0.04761714]
[1673350081846,2.83115545,17278.0,17277.0,0.04539414]
[1673350085392,3.00489043,17278.0,17277.0,0.04539414]
[1673350086162,2.47016716,17278.0,17277.0,0.04539414]
[1673350086423,2.20984731,17278.0,17277.0,0.04539414]
[1673350087206,2.47016716,17278.0,17277.0,0.04539414]
[1673350087464,2.20984731,17278.0,17277.0,0.04539414]
[1673350088476,2.47016716,17278.0,17277.0,0.04539414]
[1673350088730,2.20984731,17278.0,17277.0,0.04539414]
[1673350088984,0.25121542,17278.0,17277.0,1.17110073]
[1673350089244,0.08311542,17278.0,17277.0,1.17110073]
[1673350089510,0.08311542,17278.0,17277.0,1.97741303]
[1673350089765,0.08311542,17278.0,17277.0,2.55621703]
[1673350090022,0.08311542,17278.0,17277.0,2.58779134]
[1673350091043,0.08311542,17278.0,17277.0,2.76096418]
[1673350091798,0.08311542,17278.0,17277.0,2.31563588]
[1673350092085,0.08311542,17278.0,17277.0,2.14246304]
[1673350093358,0.08311542,17278.0,17277.0,1.78147904]
[1673350094369,0.08311542,17278.0,17277.0,2.14246304]
[1673350095377,0.08311542,17278.0,17277.0,1.78147904]
[1673350096422,0.08311542,17278.0,17277.0,2.14246304]
[1673350097664,0.08311542,17278.0,17277.0,1.78147904]
[1673350098423,0.08311542,17278.0,17277.0,2.14246304]
[1673350099715,0.08311542,17278.0,17277.0,2.58779134]
[1673350099958,0.08311542,17278.0,17277.0,2.14246304]
[1673350102383,0.08300937,17278.0,17277.0,2.14246304]
[1673350103404,0.08300937,17278.0,17277.0,1.78147904]
[1673350104403,0.08300937,17278.0,17277.0,2.14246304]
[1673350105282,0.08300937,17278.0,17277.0,1.78147904]
[1673350105767,0.08300937,17278.0,17277.0,2.14246304]
[1673350106269,0.08300937,17278.0,17277.0,1.78147904]
[1673350124007,0.08300937,17278.0,17277.0,0.65577245]
[1673350124265,2.34096649,17278.0,17277.0,0.65577245]
[1673350124525,2.51461766,17278.0,17277.0,0.65577245]
[1673350125024,2.51461766,17278.0,17277.0,0.07696845]
[1673350125792,2.34107782,17278.0,17277.0,0.07696845]
[1673350128095,2.34107782,17278.0,17277.0,0.32696845]
[1673350134518,2.08075797,17278.0,17277.0,0.32696845]
[1673350134767,2.08075797,17278.0,17277.0,0.90577245]
[1673350138336,2.08075797,17278.0,17277.0,0.90559984]
[1673350140358,1.41451063,17278.0,17277.0,0.90559984]
[1673350145933,0.08300937,17278.0,17277.0,2.7471591]
[1673350146186,0.08300937,17278.0,17277.0,3.99400468]
[1673350146441,0.08300937,17278.0,17277.0,4.3352436]
[1673350146693,0.08300937,17278.0,17277.0,4.33546035]
[1673350146956,0.02400937,17278.0,17277.0,4.49956078]
[1673350147245,0.02500937,17278.0,17277.0,4.52756078]
[1673350147503,0.02500937,17278.0,17277.0,4.18124902]
[1673350147759,0.02500937,17278.0,17277.0,3.74819788]
[1673350148015,0.02500937,17278.0,17277.0,4.18106515]
[1673350148521,0.02500937,17278.0,17277.0,4.52736523]
[1673350150549,0.02500937,17278.0,17277.0,4.78698356]
[1673350151074,0.02500937,17278.0,17277.0,4.35411629]
[1673350152364,0.02500937,17278.0,17277.0,4.52717629]
[1673350152619,0.02500937,17278.0,17277.0,4.35411629]
[1673350155244,0.02500937,17278.0,17277.0,4.18083624]
[1673350156056,0.02500937,17278.0,17277.0,2.84976199]
[1673350156307,0.02500937,17278.0,17277.0,3.29509029]
[1673350159400,0.02500937,17278.0,17277.0,3.12699029]
[1673350159850,0.02493206,17278.0,17277.0,3.12699029]
[1673350160342,0.02493206,17278.0,17277.0,4.01179485]
[1673350160633,0.02493206,17278.0,17277.0,3.38660862]
[1673350161900,0.02493206,17278.0,17277.0,3.12699029]
[1673350172361,0.02493206,17278.0,17277.0,2.68166199]
[1673350172882,0.02493206,17278.0,17277.0,2.14765796]
[1673350173397,0.02493206,17278.0,17277.0,2.50864196]
[1673350177305,0.02493206,17278.0,17277.0,2.14765796]
[1673350178804,0.02493206,17278.0,17277.0,2.50864196]
[1673350180097,0.02493206,17278.0,17277.0,2.14765796]
[1673350183559,0.02493206,17278.0,17277.0,2.50864196]
[1673350183865,0.02493206,17278.0,17277.0,2.68166199]
[1673350184121,0.02493206,17278.0,17277.0,2.50864196]
[1673350184857,0.02493206,17278.0,17277.0,2.68166199]
[1673350185384,0.02493206,17278.0,17277.0,2.50864196]
[1673350185637,0.02493206,17278.0,17277.0,2.68166199]
[1673350186405,0.02493206,17278.0,17277.0,2.32067799]
[1673350186914,0.02493206,17278.0,17277.0,2.68166199]
[1673350189442,0.02493206,17278.0,17277.0,2.32067799]
[1673350190281,0.02493206,17278.0,17277.0,2.14765796]
[1673350192007,0.02493206,17278.0,17277.0,2.50864196]
[1673350192229,0.02493206,17278.0,17277.0,2.14765796]
[1673350193963,0.02493206,17278.0,17277.0,2.50864196]
[1673350194715,0.02493206,17278.0,17277.0,2.68166199]
[1673350194976,0.02493206,17278.0,17277.0,2.50864196]
[1673350195228,0.02493206,17278.0,17277.0,2.14765796]
[1673350195747,0.02493206,17278.0,17277.0,2.32067799]
[1673350195966,0.02493206,17278.0,17277.0,2.68166199]
[1673350200872,0.02493206,17278.0,17277.0,2.32067799]
[1673350201102,0.02493206,17278.0,17277.0,2.68166199]
[1673350201587,0.02207406,17278.0,17277.0,2.68166199]
[1673350201873,0.02207406,17278.0,17277.0,2.32067799]
[1673350203113,0.02207406,17278.0,17277.0,2.68166199]
[1673350203359,0.02207406,17278.0,17277.0,2.32067799]
[1673350203601,0.02207406,17278.0,17277.0,2.68166199]
[1673350204591,0.02207406,17278.0,17277.0,2.32067799]
[1673350205477,0.02207406,17278.0,17277.0,2.68166199]
[1673350205644,0.02207406,17278.0,17277.0,2.94128032]
[1673350206176,0.02207406,17278.0,17277.0,2.68166199]
[1673350206422,0.02207406,17278.0,17277.0,2.94128032]
[1673350206741,0.02207406,17278.0,17277.0,4.01255119]
[1673350206944,0.02207406,17278.0,17277.0,4.18583124]
[1673350210932,0.02207406,17278.0,17277.0,3.74050294]
[1673350211952,0.02207406,17278.0,17277.0,4.18583124]
[1673350212171,0.02207406,17278.0,17277.0,3.74050294]
[1673350212480,0.02207406,17278.0,17277.0,4.18583124]
[1673350213429,0.02207406,17278.0,17277.0,4.61869851]
[1673350213670,0.02207406,17278.0,17277.0,4.35908018]
[1673350214170,0.02207406,17278.0,17277.0,4.61903165]
[1673350214480,0.02207406,17278.0,17277.0,4.18616438]
[1673350216286,0.02207406,17278.0,17277.0,4.61903165]
[1673350216543,0.02207406,17278.0,17277.0,4.18616438]
[1673350216797,0.02207406,17278.0,17277.0,4.61903165]
[1673350217188,0.02207406,17278.0,17277.0,4.18616438]
[1673350217443,0.02207406,17278.0,17277.0,4.35908018]
[1673350217693,0.02207406,17278.0,17277.0,4.18614515]
[1673350220771,0.02207406,17278.0,17277.0,3.74081685]
[1673350221020,0.02207406,17278.0,17277.0,4.18614515]
[1673350225700,0.02207406,17278.0,17277.0,3.74081685]
[1673350225871,0.02207406,17278.0,17277.0,3.37983285]
[1673350226155,0.02207406,17278.0,17277.0,3.55309317]
[1673350226393,0.02207406,17278.0,17277.0,3.91407717]
[1673350226908,0.02207406,17278.0,17277.0,3.56777894]
[1673350232003,0.02207406,17278.0,17277.0,3.91407902]
[1673350232231,0.02207406,17278.0,17277.0,3.56777894]
[1673350233993,0.02207406,17278.0,17277.0,3.91407902]
[1673350234486,0.02207406,17278.0,17277.0,3.74081685]
[1673350236176,0.02207406,17278.0,17277.0,4.18614515]
[1673350236435,0.02207406,17278.0,17277.0,3.74081685]
[1673350242012,0.02207406,17278.0,17277.0,3.37983285]
[1673350242262,0.02207406,17278.0,17277.0,3.74081685]
[1673350243020,0.02207406,17278.0,17277.0,3.37983285]
[1673350243277,0.02207406,17278.0,17277.0,3.53844983]
[1673350243531,0.02207406,17278.0,17277.0,3.21089788]
[1673350243787,0.02207406,17278.0,17277.0,3.55719796]
[1673350244049,0.02207406,17278.0,17277.0,3.7448255]
[1673350247291,0.02207406,17278.0,17277.0,4.62302107]
[1673350247535,0.02207406,17278.0,17277.0,4.36308883]
[1673350249037,0.02207406,17278.0,17277.0,4.01678875]
[1673350250529,0.02199273,17278.0,17277.0,4.01678875]
[1673350251627,0.02199273,17278.0,17277.0,4.68953033]
[1673350251887,0.02290651,17279.0,17278.0,0.21534046]
[1673350252143,0.02290651,17279.0,17278.0,3.38108057]
[1673350252449,0.02290651,17279.0,17278.0,4.17522649]
[1673350252947,0.02290651,17279.0,17278.0,4.42522649]
[1673350253200,0.02490651,17279.0,17278.0,4.56522649]
[1673350253422,0.02290651,17279.0,17278.0,4.19331568]
[1673350253676,0.02490651,17279.0,17278.0,4.63331568]
[1673350254172,0.02490651,17279.0,17278.0,4.97975758]
[1673350255386,0.02490651,17279.0,17278.0,4.67975758]
[1673350256412,0.02490651,17279.0,17278.0,4.67875858]
[1673350257953,0.02490651,17279.0,17278.0,4.97875858]
[1673350258756,0.02490651,17279.0,17278.0,4.63231668]
[1673350258971,0.02490651,17279.0,17278.0,4.9786264]
[1673350259230,0.02490651,17279.0,17278.0,4.63231668]
[1673350259484,0.02490651,17279.0,17278.0,7.10620102]
[1673350259729,0.02840525,17280.0,17279.0,0.55325328]
[1673350260005,0.02840525,17280.0,17279.0,3.24859815]
[1673350260236,0.02840525,17280.0,17279.0,4.04205493]
[1673350260535,0.02840525,17280.0,17279.0,4.04746808]
[1673350260762,0.02840525,17280.0,17279.0,4.02688179]
[1673350261000,0.02840525,17280.0,17279.0,3.83155349]
[1673350261279,0.03040525,17280.0,17279.0,4.41488179]
[1673350261498,0.02840525,17280.0,17279.0,3.6585949]
[1673350261720,0.03040525,17280.0,17279.0,4.2429232]
[1673350261979,0.03040525,17280.0,17279.0,4.41588179]
[1673350262231,0.03040525,17280.0,17279.0,4.71588179]
[1673350262487,0.03040525,17280.0,17279.0,4.41588179]
[1673350264739,0.03040525,17280.0,17279.0,3.97055349]
[1673350264964,0.03040525,17280.0,17279.0,3.79748733]
[1673350266725,0.03040525,17280.0,17279.0,3.62438717]
[1673350267506,0.03040525,17280.0,17279.0,3.62300322]
[1673350268010,0.03040525,17280.0,17279.0,2.9984446]
[1673350268263,0.03040525,17280.0,17279.0,3.63424078]
[1673350268762,0.03040525,17280.0,17279.0,2.9984446]
[1673350269265,0.03040525,17280.0,17279.0,3.63423608]
[1673350270009,0.03040525,17280.0,17279.0,4.55266454]
[1673350270532,0.03040525,17280.0,17279.0,5.7257307]
[1673350270780,0.03040525,17280.0,17279.0,5.55255794]
[1673350271041,0.03040525,17280.0,17279.0,5.25255794]
[1673350271290,0.03040525,17280.0,17279.0,5.55255794]
[1673350271822,0.03040525,17280.0,17279.0,5.7257307]
[1673350272294,0.02840525,17281.0,17280.0,0.22253572]
[1673350272562,0.02840525,17281.0,17280.0,4.00720018]
[1673350272813,0.02840525,17281.0,17280.0,4.36818418]
[1673350273310,0.02840525,17281.0,17280.0,4.93140696]
[1673350273578,0.02840525,17281.0,17280.0,4.29020711]
[1673350273875,0.02840525,17281.0,17280.0,3.94452778]
[1673350274084,0.02840525,17281.0,17280.0,4.29004889]
[1673350274349,0.02840525,17281.0,17280.0,5.48127545]
[1673350274592,0.02260925,17282.0,17281.0,0.21386662]
[1673350274867,0.02260925,17282.0,17281.0,4.0885264]
[1673350275147,0.02260925,17282.0,17281.0,6.57307148]
[1673350275408,0.01536329,17283.0,17281.0,8.12901415]
[1673350275675,0.01521329,17283.0,17282.0,3.08636745]
[1673350275926,0.01521329,17283.0,17282.0,5.20856114]
[1673350276171,0.01521329,17283.0,17282.0,3.95933978]
[1673350276484,0.01521329,17283.0,17282.0,4.13186114]
[1673350276734,0.01521329,17283.0,17282.0,4.69036114]
[1673350277211,0.01521329,17283.0,17282.0,5.22508767]
[1673350277458,0.01521329,17283.0,17282.0,5.36408767]
[1673350277702,0.01521329,17283.0,17282.0,4.00135476]
[1673350277950,0.01521329,17283.0,17282.0,3.40740709]
[1673350278227,0.01521329,17283.0,17282.0,2.6145097]
[1673350278477,0.01521329,17283.0,17282.0,2.4755097]
[1673350280011,0.01521329,17283.0,17282.0,2.6145097]
[1673350280240,0.01521329,17283.0,17282.0,2.0358737]
[1673350281006,0.01521329,17283.0,17282.0,1.6748897]
[1673350281252,0.68952709,17283.0,17282.0,0.389]
[1673350282748,0.68952709,17283.0,17282.0,0.25]
[1673350284080,0.68952709,17283.0,17282.0,0.257]
[1673350285385,0.85762709,17283.0,17282.0,0.257]
[1673350285640,1.21861109,17283.0,17282.0,0.257]
[1673350286142,1.21861109,17283.0,17282.0,0.25]
[1673350286393,1.21861109,17283.0,17282.0,0.257]
[1673350288429,0.71139729,17283.0,17282.0,0.257]
[1673350288715,2.18171243,17283.0,17282.0,0.257]
[1673350289253,3.05526683,17283.0,17282.0,0.25]
[1673350289433,3.64186983,17283.0,17282.0,0.251]
[1673350289958,3.63386983,17283.0,17282.0,0.25]
[1673350290226,4.27769109,17283.0,17282.0,0.26]
[1673350290500,3.98932333,17283.0,17282.0,0.26]
[1673350291230,3.55533825,17283.0,17282.0,0.26]
[1673350291495,4.33416348,17283.0,17282.0,0.26]
[1673350291767,4.03416348,17283.0,17282.0,0.26]
[1673350292755,4.33416348,17283.0,17282.0,0.26]
[1673350293265,4.33409688,17283.0,17282.0,0.26]
[1673350297520,3.81314036,17283.0,17282.0,0.26]
[1673350297767,3.9398699,17283.0,17282.0,0.26]
[1673350298528,4.23377017,17283.0,17282.0,0.26]
[1673350298781,3.07599173,17283.0,17282.0,0.26]
[1673350299045,2.48209146,17283.0,17282.0,0.26]
[1673350299306,2.64949146,17283.0,17282.0,0.26]
[1673350299560,4.28060328,17283.0,17282.0,0.26]
[1673350299820,4.50143904,17283.0,17282.0,0.26]
[1673350300324,4.28060328,17283.0,17282.0,0.26]
[1673350300574,4.50142146,17283.0,17282.0,0.18760468]
[1673350300816,4.28060328,17283.0,17282.0,0.18760468]
[1673350301075,3.80727139,17283.0,17282.0,0.18760468]
[1673350301563,4.10727139,17283.0,17282.0,0.18760468]
[1673350302102,3.25066534,17283.0,17282.0,0.18760468]
[1673350302388,2.94943003,17283.0,17282.0,0.18760468]
[1673350302626,3.8072889,17283.0,17282.0,0.18760468]
[1673350302865,3.28630681,17283.0,17282.0,0.18760468]
[1673350303365,2.64943003,17283.0,17282.0,0.18760468]
[1673350303616,2.94943003,17283.0,17282.0,0.18760468]
[1673350304613,3.80730477,17283.0,17282.0,0.18760468]
[1673350305102,4.10730477,17283.0,17282.0,0.18760468]
[1673350305343,2.94943003,17283.0,17282.0,0.18760468]
[1673350305848,4.10731222,17283.0,17282.0,0.18760468]
[1673350306337,3.80731222,17283.0,17282.0,0.18760468]
[1673350306595,2.64943003,17283.0,17282.0,0.18760468]
[1673350306849,4.10731274,17283.0,17282.0,0.18760468]
[1673350307596,2.94943003,17283.0,17282.0,0.18760468]
[1673350307840,4.28067736,17283.0,17282.0,0.18760468]
[1673350308094,4.49323071,17283.0,17282.0,0.18760468]
[1673350308339,4.28067736,17283.0,17282.0,0.18760468]
[1673350309055,4.49322939,17283.0,17282.0,0.18760468]
[1673350309287,4.69196842,17283.0,17282.0,0.18760468]
[1673350309547,4.37176401,17283.0,17282.0,0.18760468]
[1673350309795,4.11257736,17283.0,17282.0,0.18760468]
[1673350310035,3.93908231,17283.0,17282.0,0.18760468]
[1673350310541,2.78116687,17283.0,17282.0,0.18760468]
[1673350315551,4.32496146,17283.0,17282.0,0.18760468]
[1673350316825,3.67881845,17283.0,17282.0,0.18760468]
[1673350317124,4.02465341,17283.0,17282.0,0.18760468]
[1673350317326,4.32465341,17283.0,17282.0,0.18760468]
[1673350317589,3.97881845,17283.0,17282.0,0.18760468]
[1673350319382,3.41423623,17283.0,17282.0,0.18760468]
[1673350320181,3.24613623,17283.0,17282.0,0.18760468]
[1673350320707,3.54613623,17283.0,17282.0,0.14083014]
[1673350321726,3.24613623,17283.0,17282.0,0.14083014]
[1673350322736,4.06708781,17283.0,17282.0,0.14083014]
[1673350325461,3.91922464,17283.0,17282.0,0.14083014]
[1673350327169,3.75182464,17283.0,17282.0,0.14083014]
[1673350327511,4.3376932,17283.0,17282.0,0.14083014]
[1673350328052,5.48873366,17283.0,17282.0,0.14083014]
[1673350328599,6.07460222,17283.0,17282.0,0.14083014]
[1673350329359,6.24270222,17283.0,17282.0,0.14083014]
[1673350334707,6.24270222,17283.0,17282.0,0.01]
[1673350338403,5.94270222,17283.0,17282.0,0.01]
[1673350338921,5.35683366,17283.0,17282.0,0.01]
[1673350340166,6.24270222,17283.0,17282.0,0.01]
[1673350340417,6.24270222,17283.0,17282.0,0.00771052]
[1673350341829,5.94270222,17283.0,17282.0,0.00771052]
[1673350343047,6.24270222,17283.0,17282.0,0.00771052]
[1673350343341,5.35683366,17283.0,17282.0,0.00771052]
[1673350343589,5.94270222,17283.0,17282.0,0.00771052]
[1673350344131,5.94829875,17283.0,17282.0,0.00771052]
[1673350345923,6.00692276,17283.0,17282.0,0.00771052]
[1673350347243,6.76421617,17283.0,17282.0,0.00771052]
[1673350347776,6.46421617,17283.0,17282.0,0.00771052]
[1673350348606,6.76421617,17283.0,17282.0,0.00771052]
[1673350348874,6.50547534,17283.0,17282.0,0.00771052]
[1673350349384,6.85711469,17283.0,17282.0,0.00771052]
[1673350349604,7.15711469,17283.0,17282.0,0.00771052]
[1673350349868,6.20547534,17283.0,17282.0,0.00771052]
[1673350350374,6.50547534,17283.0,17282.0,0.00771052]
[1673350351380,7.16574346,17283.0,17282.0,0.00771052]
[1673350352126,6.50547534,17283.0,17282.0,0.00771052]
[1673350359003,6.33837534,17283.0,17282.0,0.00771052]
[1673350360532,6.33837534,17283.0,17282.0,0.00506868]
[1673350360533,6.9177664,17283.0,17282.0,0.00506868]
[1673350360780,6.33837534,17283.0,17282.0,0.00506868]
[1673350369835,5.75250678,17283.0,17282.0,0.00506868]
[1673350370087,6.33843822,17283.0,17282.0,0.00506868]
[1673350370342,6.33843918,17283.0,17282.0,0.00506868]
[1673350370862,6.56723532,17283.0,17282.0,0.00506868]
[1673350371111,6.33843918,17283.0,17282.0,0.00506868]
[1673350371365,5.75250678,17283.0,17282.0,0.00506868]
[1673350371619,6.33839893,17283.0,17282.0,0.00506868]
[1673350374333,6.33839893,17283.0,17282.0,0.00223169]
[1673350374334,6.20871678,17283.0,17282.0,0.00223169]
[1673350374599,6.68441678,17283.0,17282.0,0.00223169]
[1673350375087,7.26380784,17283.0,17282.0,0.00223169]
[1673350375606,7.25580784,17283.0,17278.0,0.06808919]
[1673350375863,0.52070485,17280.0,17278.0,0.06808919]
[1673350376134,1.5188901,17279.0,17278.0,0.06808919]
[1673350376388,3.73128354,17279.0,17278.0,0.06808919]
[1673350376890,3.73128354,17279.0,17278.0,0.07208919]
[1673350377116,3.73128354,17279.0,17278.0,0.06808919]
[1673350377345,3.86628354,17279.0,17278.0,0.07208919]
[1673350377593,4.96536879,17279.0,17278.0,0.07208919]
[1673350380109,4.53154892,17279.0,17278.0,0.07208919]
[1673350381559,4.60433341,17279.0,17278.0,0.07208919]
[1673350382338,4.96531741,17279.0,17278.0,0.07208919]
[1673350383103,4.69964892,17279.0,17278.0,0.07208919]
[1673350383323,5.22035377,17279.0,17278.0,0.07208919]
[1673350384332,5.51035377,17279.0,17278.0,0.07208919]
[1673350384582,6.08909077,17279.0,17278.0,0.07208919]
[1673350385311,6.00256239,17279.0,17278.0,0.07208919]
[1673350385823,6.00256239,17279.0,17278.0,0.04970428]
[1673350387680,7.56549914,17279.0,17278.0,0.04970428]
[1673350387931,10.50055663,17279.0,17278.0,0.02305786]
[1673350388516,9.91476368,17279.0,17278.0,0.02305786]
[1673350388966,10.36484384,17279.0,17278.0,0.01905786]
[1673350389218,9.90276368,17279.0,17278.0,0.02005786]
[1673350389471,9.20037262,17279.0,17278.0,0.01905786]
[1673350389720,9.36382213,17279.0,17278.0,0.01905786]
[1673350389977,7.58383442,17279.0,17278.0,0.01905786]
[1673350390236,6.52331762,17279.0,17278.0,0.01905786]
[1673350390492,6.0812353,17279.0,17278.0,0.01905786]
[1673350390759,4.40409108,17279.0,17278.0,0.01905786]
[1673350391787,4.8461734,17279.0,17278.0,0.01905786]
[1673350394880,4.29936586,17279.0,17278.0,0.01905786]
[1673350395137,4.87810286,17279.0,17278.0,0.01905786]
[1673350395674,5.69777308,17279.0,17278.0,0.01905786]
[1673350398966,5.86497308,17279.0,17278.0,0.01905786]
[1673350400221,6.44371008,17279.0,17278.0,0.01905786]
[1673350402202,7.02310114,17279.0,17278.0,0.01905786]
[1673350403224,6.44371008,17279.0,17278.0,0.01905786]
[1673350404993,6.83622183,17279.0,17278.0,0.01905786]
[1673350405537,6.31655161,17279.0,17278.0,0.01905786]
[1673350405785,6.31655161,17279.0,17278.0,0.01300628]
[1673350406047,6.91049928,17279.0,17278.0,0.01300628]
[1673350406298,10.3355498,17279.0,17278.0,0.00593249]
[1673350406550,10.3355498,17279.0,17278.0,0.06442103]
[1673350407336,9.75088806,17279.0,17278.0,0.06442103]
[1673350407583,9.75088806,17279.0,17278.0,0.00593249]
[1673350407842,10.33546294,17279.0,17278.0,0.00593249]
[1673350408101,9.75088806,17279.0,17278.0,0.00593249]
[1673350408359,9.75088806,17279.0,17278.0,0.00203535]
[1673350408639,0.2,17278.0,17276.0,0.00277937]
[1673350408959,4.82952553,17277.0,17276.0,0.00277937]
[1673350409158,3.76922599,17277.0,17276.0,0.00277937]
[1673350409419,7.53562961,17277.0,17276.0,0.00277937]
[1673350409668,8.59911918,17277.0,17276.0,0.00277937]
[1673350409924,8.59911918,17277.0,17276.0,0.00377937]
[1673350410176,8.59392067,17277.0,17276.0,0.00377937]
[1673350410428,6.85630868,17277.0,17276.0,0.00377937]
[1673350411217,6.27691762,17277.0,17276.0,0.00377937]
[1673350411514,6.27691762,17277.0,17276.0,0.00277937]
[1673350411737,6.41291762,17277.0,17276.0,0.00277937]
[1673350412251,6.54891762,17277.0,17276.0,0.00377937]
[1673350413308,6.67592516,17277.0,17276.0,0.00377937]
[1673350413557,7.06555629,17277.0,17276.0,0.00377937]
[1673350413829,6.67604364,17277.0,17276.0,0.00377937]
[1673350416126,6.17988327,17277.0,17276.0,0.00377937]
[1673350417398,6.47988327,17277.0,17276.0,0.00377937]
[1673350418942,5.90589597,17277.0,17276.0,0.00377937]
[1673350419405,6.43638123,17277.0,17276.0,0.00377937]
[1673350420911,6.82622031,17277.0,17276.0,0.00377937]
[1673350421166,6.43638123,17277.0,17276.0,0.00377937]
[1673350421902,6.82622652,17277.0,17276.0,0.00377937]
[1673350422157,6.29574126,17277.0,17276.0,0.00377937]
[1673350422409,5.77610349,17277.0,17276.0,0.00377937]
[1673350423677,7.51366602,17277.0,17276.0,0.00377937]
[1673350425659,8.09825559,17277.0,17276.0,0.0017491]
[1673350425911,0.2,17276.0,17275.0,0.0031097]
[1673350426171,4.37808515,17276.0,17275.0,0.0031097]
[1673350426426,4.89814789,17276.0,17275.0,0.0031097]
[1673350426681,4.5083026,17276.0,17275.0,0.0031097]
[1673350427204,4.51360544,17276.0,17275.0,0.0041097]
[1673350427998,5.03364055,17276.0,17275.0,0.0041097]
[1673350428529,4.51360544,17276.0,17275.0,0.0041097]
[1673350429023,5.2610965,17276.0,17275.0,0.0041097]
[1673350429338,4.68170544,17276.0,17275.0,0.0041097]
[1673350430055,5.27565311,17276.0,17275.0,0.0041097]
[1673350431321,5.79563705,17276.0,17275.0,0.0041097]
[1673350431824,5.27558909,17276.0,17275.0,0.0041097]
[1673350432335,5.36896938,17276.0,17275.0,0.0041097]
[1673350433851,7.10660956,17276.0,17275.0,0.0041097]
[1673350434607,7.11510956,17276.0,17275.0,0.0041097]
[1673350435117,7.69969913,17276.0,17275.0,0.0041097]
[1673350436881,7.60631884,17276.0,17275.0,0.00191507]
[1673350445876,7.60631884,17276.0,17275.0,0.00133656]
[1673350446126,7.60752685,17276.0,17275.0,0.00133656]
[1673350446951,7.60752685,17276.0,17275.0,0.00062202]
[1673350447234,7.02172927,17276.0,17275.0,0.00062202]
[1673350447466,8.18691926,17276.0,17275.0,0.00062202]
[1673350447736,7.60112033,17276.0,17275.0,0.00062202]
[1673350448239,7.02172927,17276.0,17275.0,0.00062202]
[1673350449724,7.28918758,17276.0,17275.0,0.00062202]
[1673350452397,7.87490228,17276.0,17275.0,0.00062202]
[1673350454363,7.28918758,17276.0,17275.0,0.00062202]
[1673350457038,7.28918758,17276.0,17275.0,0.00029519]
[1673350457275,7.87491415,17276.0,17275.0,0.00029519]
[1673350457539,7.86857864,17276.0,17275.0,0.00029519]
[1673350458300,8.29617864,17276.0,17275.0,0.00029519]
[1673350459839,7.71678758,17276.0,17275.0,0.00029519]
[1673350460601,7.71678758,17276.0,17275.0,0.00010508]
[1673350462701,7.77477811,17276.0,17275.0,0.00010508]
[1673350462948,7.71678758,17276.0,17275.0,0.00010508]
[1673350464730,0.19533997,17275.0,17272.0,0.00313778]
[1673350465035,4.46496682,17274.0,17272.0,0.00313778]
[1673350465230,4.79495371,17273.0,17272.0,0.00313778]
[1673350465498,6.61969182,17273.0,17272.0,0.00313778]
[1673350465745,8.35063127,17273.0,17272.0,0.00413778]
[1673350465999,7.77169327,17273.0,17272.0,0.00223651]
[1673350466508,7.89769327,17273.0,17272.0,0.00323651]
[1673350467274,8.03503108,17273.0,17272.0,0.00323651]
[1673350467763,8.20213108,17273.0,17272.0,0.00323651]
[1673350468025,8.06479327,17273.0,17272.0,0.00323651]
[1673350468519,8.73911062,17273.0,17272.0,0.00323651]
[1673350468770,8.06479327,17273.0,17272.0,0.00323651]
[1673350469027,8.66151692,17273.0,17272.0,0.00323651]
[1673350469269,6.92387674,17273.0,17272.0,0.00323651]
[1673350469778,8.02366077,17273.0,17272.0,0.00323651]
[1673350470077,6.92387674,17273.0,17272.0,0.00323651]
[1673350470301,6.32715309,17273.0,17272.0,0.00323651]
[1673350470554,8.06506594,17273.0,17272.0,0.00323651]
[1673350470814,8.06507367,17273.0,17272.0,0.00323651]
[1673350472053,8.73213354,17273.0,17272.0,0.00323651]
[1673350472295,8.06507367,17273.0,17272.0,0.00323651]
[1673350472543,6.6414951,17273.0,17272.0,0.00323651]
[1673350472798,8.37942422,17273.0,17272.0,0.00323651]
[1673350473559,8.96556198,17273.0,17272.0,0.00323651]
[1673350474071,8.06508221,17273.0,17272.0,0.00323651]
[1673350474324,6.32715309,17273.0,17272.0,0.00323651]
[1673350474577,6.84751688,17273.0,17272.0,0.00323651]
[1673350474825,6.32715309,17273.0,17272.0,0.00323651]
[1673350475076,6.15821587,17273.0,17272.0,0.00323651]
[1673350475328,6.86822189,17273.0,17272.0,0.00323651]
[1673350475833,6.31770321,17273.0,17272.0,0.00323651]
[1673350476315,8.76224371,17273.0,17272.0,0.00323651]
[1673350476560,7.02431799,17273.0,17272.0,0.00323651]
[1673350476817,6.31770321,17273.0,17272.0,0.00323651]
[1673350477061,6.83808306,17273.0,17272.0,0.00323651]
[1673350477539,6.87449921,17273.0,17272.0,0.00323651]
[1673350477831,6.31770321,17273.0,17272.0,0.00323651]
[1673350478568,6.45823125,17273.0,17272.0,0.00323651]
[1673350478862,7.48185394,17273.0,17272.0,0.00323651]
[1673350479114,7.10200539,17273.0,17272.0,0.00323651]
[1673350479366,6.96147174,17273.0,17272.0,0.00323651]
[1673350479586,6.3176976,17273.0,17272.0,0.00323651]
[1673350479886,8.65965881,17273.0,17272.0,0.00323651]
[1673350480397,6.92174462,17273.0,17272.0,0.00323651]
[1673350481680,8.63499748,17273.0,17272.0,0.00323651]
[1673350481943,9.24616151,17273.0,17272.0,0.00323651]
[1673350482447,8.63499748,17273.0,17272.0,0.00323651]
[1673350482939,9.79957421,17273.0,17272.0,0.00323651]
[1673350486035,9.79957421,17273.0,17272.0,0.00070965]
[1673350486293,9.22018315,17273.0,17272.0,0.00070965]